[Event "European Rapid Championship 2021"]
[Site "Katowice"]
[Date "2021.12.19"]
[Round "10.25"]
[White "Krzywda, Andrzej"]
[Black "Diermair, Andreas"]
[Result "1-0"]
[ECO "C60"]
[WhiteElo "2123"]
[BlackElo "2408"]
[Annotator "NA"]
[PlyCount "145"]
[EventDate "2021.12.18"]
[EventType "swiss"]
[EventCountry "POL"]
[SourceTitle "playchess.com"]
[Source "ChessBase"]
[SourceQuality "1"]
[TimeControl "900+10"]

1. e4 {[%emt 0:00:01]} e5 {[%emt 0:00:01]} 2. Nf3 {[%emt 0:00:02]} Nc6 {
[%emt 0:00:01]} 3. Bb5 {[%emt 0:00:05]} Nge7 {[%emt 0:00:05]} 4. d4 {[%emt 0:
00:04]} exd4 {[%emt 0:00:10]} 5. Nxd4 {[%emt 0:00:03]} g6 {[%emt 0:00:09]} 6.
Nxc6 {[%emt 0:00:24]} Nxc6 {[%emt 0:00:34]} 7. Nc3 {[%emt 0:00:05]} Bg7 {
[%emt 0:00:08]} 8. Be3 {[%emt 0:00:02]} a6 {[%emt 0:01:12]} 9. Be2 {[%emt 0:00:
06]} O-O {[%emt 0:00:11]} 10. Qd2 {[%emt 0:00:02]} d6 {[%emt 0:00:39]} 11. O-O
{[%emt 0:00:17]} Re8 {[%emt 0:00:06]} 12. Bh6 {[%emt 0:00:26]} Bh8 {[%emt 0:00:
30]} 13. f4 {[%emt 0:00:02]} Nd4 {[%emt 0:00:54]} 14. Bd3 {[%emt 0:01:27]} c6 {
[%emt 0:00:06]} 15. f5 {[%emt 0:01:07]} d5 {[%emt 0:00:33]} 16. Qf2 {[%emt 0:
01:55]} Qc7 {[%emt 0:03:07]} 17. f6 {[%emt 0:04:23]} dxe4 {[%emt 0:00:45]} 18.
Nxe4 {[%emt 0:00:14]} c5 {[%emt 0:01:07]} 19. Ng5 {[%emt 0:03:15]} Bf5 {
[%emt 0:01:29]} 20. Bc4 {[%emt 0:00:52]} Ne6 {[%emt 0:00:52]} 21. Bxe6 {
[%emt 0:00:22]} Bxe6 {[%emt 0:00:03]} 22. Qh4 {[%emt 0:00:40]} Qe5 {[%emt 0:00:
34]} 23. Rae1 {[%emt 0:01:35]} Qd5 {[%emt 0:00:37]} 24. Rd1 {[%emt 0:01:11]}
Qc4 {[%emt 0:00:31]} 25. Rf4 {[%emt 0:00:08]} Qxc2 {[%emt 0:00:09]} 26. Rdf1 {
[%emt 0:00:14]} Bd5 {[%emt 0:00:34]} 27. R4f2 {[%emt 0:00:02]} Re2 {[%emt 0:00:
44]} 28. Bg7 {[%emt 0:00:15]} h5 {[%emt 0:00:09]} 29. Bxh8 {[%emt 0:00:12]}
Kxh8 {[%emt 0:00:12]} 30. Qf4 {[%emt 0:00:03]} Kg8 {[%emt 0:00:41]} 31. Nxf7 {
[%emt 0:00:20]} Rxf2 {[%emt 0:00:39]} 32. Rxf2 {[%emt 0:00:14]} Qd1+ {[%emt 0:
00:16]} 33. Rf1 {[%emt 0:00:01]} Qd4+ {[%emt 0:00:07]} 34. Qxd4 {[%emt 0:00:03]
} cxd4 {[%emt 0:00:01]} 35. Ne5 {[%emt 0:00:16]} Bxa2 {[%emt 0:00:46]} 36. Nxg6
{[%emt 0:00:19]} d3 {[%emt 0:00:02]} 37. Ne5 {[%emt 0:00:09]} d2 {[%emt 0:00:
11]} 38. Rd1 {[%emt 0:00:17]} Rd8 {[%emt 0:00:11]} 39. Nf3 {[%emt 0:00:06]} Kf7
{[%emt 0:00:09]} 40. Kf2 {[%emt 0:00:16]} Kxf6 {[%emt 0:00:05]} 41. Rxd2 {
[%emt 0:00:03]} Rxd2+ {[%emt 0:00:07]} 42. Nxd2 {[%emt 0:00:01]} Bd5 {[%emt 0:
00:02]} 43. g3 {[%emt 0:00:07]} Kf5 {[%emt 0:00:11]} 44. Nf1 {[%emt 0:00:12]}
Ke4 {[%emt 0:00:09]} 45. Ne3 {[%emt 0:00:06]} Be6 {[%emt 0:00:04]} 46. Ng2 {
[%emt 0:00:23]} a5 {[%emt 0:00:13]} 47. Nf4 {[%emt 0:00:03]} Bf7 {[%emt 0:00:
03]} 48. Ke2 {[%emt 0:00:20]} b5 {[%emt 0:00:03]} 49. Kd2 {[%emt 0:00:11]} b4 {
[%emt 0:00:04]} 50. Nd3 {[%emt 0:00:05]} Be8 {[%emt 0:00:38]} 51. Nf4 {[%emt 0:
00:22]} Kd4 {[%emt 0:00:39]} 52. Ne6+ {[%emt 0:00:10]} Kc4 {[%emt 0:00:17]} 53.
h3 {[%emt 0:00:04]} Kb3 {[%emt 0:01:02]} 54. Kc1 {[%emt 0:00:01]} a4 {[%emt 0:
00:14]} 55. g4 {[%emt 0:00:14]} Ka2 {[%emt 0:00:12]} 56. Nd4 {[%emt 0:00:16]}
b3 {[%emt 0:00:15]} 57. Ne2 {[%emt 0:00:12]} a3 {[%emt 0:00:27]} 58. Nc3+ {
[%emt 0:00:01]} Ka1 {[%emt 0:00:01]} 59. bxa3 {[%emt 0:00:05]} b2+ {[%emt 0:00:
03]} 60. Kd2 {[%emt 0:00:01]} h4 {[%emt 0:00:26]} 61. g5 {[%emt 0:00:01]} Bd7 {
[%emt 0:00:02]} 62. g6 {[%emt 0:00:27]} Bxh3 {[%emt 0:00:01]} 63. a4 {[%emt 0:
00:08]} Bg2 {[%emt 0:00:28]} 64. g7 {[%emt 0:00:04]} Bd5 {[%emt 0:00:03]} 65.
Nxd5 {[%emt 0:00:19]} b1=Q {[%emt 0:00:04]} 66. g8=Q {[%emt 0:00:03]} Qa2+ {
[%emt 0:00:13]} 67. Kd3 {[%emt 0:00:18]} Qb3+ {[%emt 0:00:02]} 68. Kd2 {
[%emt 0:00:04]} Qa2+ {[%emt 0:00:04]} 69. Ke3 {[%emt 0:00:16]} Qb3+ {[%emt 0:
00:02]} 70. Kf2 {[%emt 0:00:22]} Qa2+ {[%emt 0:00:14]} 71. Kg1 {[%emt 0:00:10]}
Qb1+ {[%emt 0:00:43]} 72. Kh2 {[%emt 0:00:03]} Qb2+ {[%emt 0:00:01]} 73. Kh1 {
[%emt 0:00:05]} 1-0

[Event "European Rapid Championship 2021"]
[Site "Katowice"]
[Date "2021.12.19"]
[Round "10.26"]
[White "Kalogeris, Ioannis"]
[Black "Jedrusik, Adam"]
[Result "1-0"]
[ECO "B18"]
[WhiteElo "2357"]
[BlackElo "1769"]
[Annotator "NA"]
[PlyCount "123"]
[EventDate "2021.12.18"]
[EventType "swiss"]
[EventCountry "POL"]
[SourceTitle "playchess.com"]
[Source "ChessBase"]
[SourceQuality "1"]
[TimeControl "900+10"]

1. e4 {[%emt 0:00:03]} c6 {[%emt 0:00:02]} 2. d4 {[%emt 0:00:03]} d5 {[%emt 0:
00:02]} 3. Nc3 {[%emt 0:00:04]} dxe4 {[%emt 0:00:01]} 4. Nxe4 {[%emt 0:00:01]}
Bf5 {[%emt 0:00:02]} 5. Qf3 {[%emt 0:00:02]} e6 {[%emt 0:00:15]} 6. Ne2 {
[%emt 0:00:14]} Nd7 {[%emt 0:01:07]} 7. N2g3 {[%emt 0:00:10]} Bg6 {[%emt 0:00:
02]} 8. h4 {[%emt 0:00:32]} Ngf6 {[%emt 0:00:59]} 9. c3 {[%emt 0:01:09]} Nxe4 {
[%emt 0:02:23]} 10. Nxe4 {[%emt 0:00:04]} Bxe4 {[%emt 0:00:01]} 11. Qxe4 {
[%emt 0:00:02]} Nf6 {[%emt 0:00:02]} 12. Qf3 {[%emt 0:00:36]} Qd5 {[%emt 0:00:
33]} 13. Qxd5 {[%emt 0:01:43]} cxd5 {[%emt 0:00:04]} 14. Bf4 {[%emt 0:00:09]}
a6 {[%emt 0:00:23]} 15. h5 {[%emt 0:01:08]} h6 {[%emt 0:00:12]} 16. Bd3 {
[%emt 0:00:34]} Kd7 {[%emt 0:00:02]} 17. a4 {[%emt 0:00:11]} Bd6 {[%emt 0:00:
10]} 18. Be3 {[%emt 0:00:41]} Rhe8 {[%emt 0:02:34]} 19. f3 {[%emt 0:00:25]} e5
{[%emt 0:00:41]} 20. dxe5 {[%emt 0:00:06]} Bxe5 {[%emt 0:00:02]} 21. Kd2 {
[%emt 0:00:22]} Rad8 {[%emt 0:01:01]} 22. Bb6 {[%emt 0:00:02]} Bf4+ {[%emt 0:
00:33]} 23. Kc2 {[%emt 0:00:05]} Rb8 {[%emt 0:00:24]} 24. Rad1 {[%emt 0:01:47]}
Kc6 {[%emt 0:02:01]} 25. Bf2 {[%emt 0:00:54]} Nd7 {[%emt 0:01:49]} 26. Rh4 {
[%emt 0:01:46]} Bg5 {[%emt 0:00:56]} 27. Rb4 {[%emt 0:00:06]} Be7 {[%emt 0:00:
50]} 28. Rg4 {[%emt 0:00:03]} Bf6 {[%emt 0:00:11]} 29. c4 {[%emt 0:00:52]} Ne5
{[%emt 0:01:05]} 30. cxd5+ {[%emt 0:00:05]} Kd6 {[%emt 0:00:01]} 31. Rb4 {
[%emt 0:01:42]} Nxd3 {[%emt 0:00:40]} 32. Kxd3 {[%emt 0:00:11]} b5 {[%emt 0:00:
01]} 33. axb5 {[%emt 0:01:41]} Rxb5 {[%emt 0:00:30]} 34. Rxb5 {[%emt 0:00:44]}
axb5 {[%emt 0:00:01]} 35. b4 {[%emt 0:00:42]} Kxd5 {[%emt 0:00:16]} 36. Rc1 {
[%emt 0:00:01]} Rb8 {[%emt 0:00:17]} 37. Rc7 {[%emt 0:00:13]} Ke6 {[%emt 0:00:
04]} 38. Ke4 {[%emt 0:00:28]} Be7 {[%emt 0:00:35]} 39. Bc5 {[%emt 0:00:42]} f5+
{[%emt 0:00:01]} 40. Ke3 {[%emt 0:00:18]} Bg5+ {[%emt 0:00:20]} 41. f4 {
[%emt 0:00:10]} Bf6 {[%emt 0:00:01]} 42. Bd4 {[%emt 0:00:04]} Re8 {[%emt 0:00:
28]} 43. Bc5 {[%emt 0:01:00]} Kd5+ 44. Kd3 Re4 {[%emt 0:00:23]} 45. g3 {
[%emt 0:00:08]} Re1 {[%emt 0:00:01]} 46. Rd7+ {[%emt 0:00:02]} Kc6 {[%emt 0:00:
02]} 47. Rd6+ {[%emt 0:00:02]} Kc7 {[%emt 0:00:01]} 48. Rb6 Rd1+ {[%emt 0:00:
36]} 49. Kc2 {[%emt 0:00:08]} Rh1 {[%emt 0:00:06]} 50. Rxb5 {[%emt 0:00:05]}
Rxh5 {[%emt 0:00:01]} 51. Ra5 {[%emt 0:00:21]} Rh2+ {[%emt 0:00:06]} 52. Kd3 {
[%emt 0:00:01]} Rg2 {[%emt 0:00:02]} 53. Kc4 {[%emt 0:00:13]} Rxg3 {[%emt 0:00:
05]} 54. b5 {[%emt 0:00:12]} Rc3+ {[%emt 0:00:29]} 55. Kb4 {[%emt 0:00:02]} Rf3
{[%emt 0:00:01]} 56. Ra7+ {[%emt 0:00:01]} Kc8 {[%emt 0:00:03]} 57. Bd6 {
[%emt 0:00:17]} Rd3 {[%emt 0:00:01]} 58. Bc5 {[%emt 0:00:34]} Rf3 {[%emt 0:00:
05]} 59. b6 {[%emt 0:00:08]} Rxf4+ {[%emt 0:00:01]} 60. Kb5 {[%emt 0:00:02]}
Be5 {[%emt 0:00:03]} 61. Kc6 {[%emt 0:00:19]} Bb8 {[%emt 0:00:54]} 62. Ra8 {
[%emt 0:00:10]} 1-0

[Event "European Rapid Championship 2021"]
[Site "Katowice"]
[Date "2021.12.19"]
[Round "10.26"]
[White "Wiewiora, Eneasz"]
[Black "Sotsky, Alexander"]
[Result "1/2-1/2"]
[ECO "C10"]
[WhiteElo "2333"]
[BlackElo "2333"]
[Annotator "NA"]
[PlyCount "131"]
[EventDate "2021.12.18"]
[EventType "swiss"]
[EventCountry "POL"]
[SourceTitle "playchess.com"]
[Source "ChessBase"]
[SourceQuality "1"]
[TimeControl "900+10"]

1. e4 {[%emt 0:00:03]} e6 {[%emt 0:00:00]} 2. d4 {[%emt 0:00:01]} d5 {[%emt 0:
00:01]} 3. Nc3 {[%emt 0:00:02]} dxe4 {[%emt 0:00:02]} 4. Nxe4 {[%emt 0:00:02]}
Bd7 {[%emt 0:00:01]} 5. Nf3 {[%emt 0:00:09]} Bc6 {[%emt 0:00:00]} 6. Bd3 {
[%emt 0:00:05]} Bxe4 {[%emt 0:00:02]} 7. Bxe4 {[%emt 0:00:02]} c6 {[%emt 0:00:
00]} 8. O-O {[%emt 0:00:08]} Nf6 {[%emt 0:00:01]} 9. Bd3 {[%emt 0:00:02]} Bd6 {
[%emt 0:00:01]} 10. c4 {[%emt 0:00:08]} Nbd7 {[%emt 0:00:10]} 11. Qe2 {[%emt 0:
00:05]} O-O {[%emt 0:00:02]} 12. b3 {[%emt 0:00:06]} Qc7 {[%emt 0:00:01]} 13.
Bb2 {[%emt 0:00:06]} Rfe8 {[%emt 0:00:01]} 14. Rae1 {[%emt 0:00:15]} a5 {
[%emt 0:00:05]} 15. a4 {[%emt 0:00:05]} Rad8 {[%emt 0:00:58]} 16. Bb1 {[%emt 0:
00:31]} g6 {[%emt 0:00:35]} 17. h3 {[%emt 0:00:20]} Bf8 {[%emt 0:00:06]} 18.
Ne5 {[%emt 0:00:06]} Bg7 {[%emt 0:00:04]} 19. f4 {[%emt 0:00:02]} c5 {[%emt 0:
01:13]} 20. Qe3 {[%emt 0:04:13]} b6 {[%emt 0:02:22]} 21. Qf3 {[%emt 0:01:31]}
Nb8 {[%emt 0:00:02]} 22. Rd1 {[%emt 0:02:26]} Nfd7 {[%emt 0:01:35]} 23. d5 {
[%emt 0:06:04]} exd5 {[%emt 0:03:33]} 24. Rxd5 {[%emt 0:00:02]} Nxe5 {[%emt 0:
02:43]} 25. Bxe5 {[%emt 0:00:01]} Bxe5 {[%emt 0:00:19]} 26. Rxe5 {[%emt 0:00:
01]} Rxe5 {[%emt 0:00:10]} 27. fxe5 {[%emt 0:00:02]} Re8 {[%emt 0:00:02]} 28.
Be4 {[%emt 0:00:12]} Rxe5 {[%emt 0:02:30]} 29. Bd5 Rf5 {[%emt 0:00:56]} 30. Qe3
{[%emt 0:00:02]} Rxf1+ {[%emt 0:00:02]} 31. Kxf1 {[%emt 0:00:01]} Na6 {[%emt 0:
00:11]} 32. h4 {[%emt 0:00:30]} Nb4 {[%emt 0:00:11]} 33. h5 {[%emt 0:00:08]}
Nxd5 {[%emt 0:00:48]} 34. cxd5 {[%emt 0:00:02]} gxh5 {[%emt 0:00:24]} 35. Qg5+
{[%emt 0:00:19]} Kf8 {[%emt 0:00:02]} 36. Qf6 {[%emt 0:00:03]} Qg3 {[%emt 0:00:
15]} 37. Qd8+ {[%emt 0:00:50]} Kg7 {[%emt 0:00:02]} 38. d6 {[%emt 0:00:00]}
Qd3+ {[%emt 0:00:06]} 39. Kf2 {[%emt 0:00:02]} Qd4+ {[%emt 0:00:08]} 40. Ke2 {
[%emt 0:00:07]} Qe4+ {[%emt 0:00:05]} 41. Kd1 {[%emt 0:00:17]} Qd4+ {[%emt 0:
00:13]} 42. Ke2 {[%emt 0:00:13]} Qe5+ {[%emt 0:00:06]} 43. Kd1 {[%emt 0:00:10]}
Qd4+ {[%emt 0:00:15]} 44. Ke2 {[%emt 0:00:01]} Qb2+ {[%emt 0:00:11]} 45. Ke1 {
[%emt 0:00:13]} Qc3+ {[%emt 0:00:57]} 46. Ke2 {[%emt 0:00:03]} Qc2+ {[%emt 0:
00:12]} 47. Ke1 {[%emt 0:00:08]} Qc3+ {[%emt 0:00:06]} 48. Ke2 {[%emt 0:00:01]}
Qe5+ {[%emt 0:00:13]} 49. Kd1 {[%emt 0:00:05]} Qd5+ {[%emt 0:00:04]} 50. Ke1 {
[%emt 0:00:12]} Qe6+ {[%emt 0:00:30]} 51. Kd2 {[%emt 0:00:07]} Qd5+ {[%emt 0:
00:09]} 52. Ke1 {[%emt 0:00:04]} Qe6+ {[%emt 0:00:21]} 53. Kd2 {[%emt 0:00:03]}
Qd5+ {[%emt 0:00:03]} 54. Ke1 {[%emt 0:00:01]} Qe4+ {[%emt 0:00:11]} 55. Kd1 {
[%emt 0:00:17]} Qd4+ {[%emt 0:00:08]} 56. Ke2 {[%emt 0:00:06]} Qb2+ {[%emt 0:
00:02]} 57. Ke1 {[%emt 0:00:02]} Qc3+ {[%emt 0:00:27]} 58. Ke2 {[%emt 0:00:10]}
Qc2+ {[%emt 0:00:09]} 59. Ke1 {[%emt 0:00:03]} Qe4+ {[%emt 0:00:01]} 60. Kd1 {
[%emt 0:00:03]} Qd4+ {[%emt 0:00:08]} 61. Ke2 {[%emt 0:00:15]} Qg4+ {[%emt 0:
00:21]} 62. Kd3 {[%emt 0:00:42]} Qd4+ {[%emt 0:00:06]} 63. Ke2 {[%emt 0:00:01]}
Qb2+ {[%emt 0:00:20]} 64. Ke1 {[%emt 0:00:02]} Qc1+ {[%emt 0:00:05]} 65. Ke2 {
[%emt 0:00:04]} Qb2+ {[%emt 0:00:03]} 66. Ke1 {[%emt 0:00:01]} 1/2-1/2

[Event "European Rapid Championship 2021"]
[Site "Katowice"]
[Date "2021.12.19"]
[Round "10.27"]
[White "Spalir, Jernej"]
[Black "Szente Varga, Fruzsina"]
[Result "1-0"]
[ECO "D75"]
[WhiteElo "2340"]
[BlackElo "1984"]
[Annotator "NA"]
[PlyCount "63"]
[EventDate "2021.12.18"]
[EventType "swiss"]
[EventCountry "POL"]
[SourceTitle "playchess.com"]
[Source "ChessBase"]
[SourceQuality "1"]
[TimeControl "900+10"]

1. d4 {[%emt 0:00:02]} Nf6 {[%emt 0:00:01]} 2. c4 {[%emt 0:00:03]} g6 {[%emt 0:
00:01]} 3. Nc3 {[%emt 0:00:03]} Bg7 {[%emt 0:00:02]} 4. Nf3 {[%emt 0:00:02]}
O-O {[%emt 0:00:10]} 5. g3 {[%emt 0:00:02]} d5 {[%emt 0:00:43]} 6. cxd5 {
[%emt 0:00:03]} Nxd5 {[%emt 0:00:02]} 7. Bg2 {[%emt 0:00:02]} c5 {[%emt 0:01:
46]} 8. O-O {[%emt 0:00:50]} Nc6 {[%emt 0:03:24]} 9. dxc5 {[%emt 0:00:14]} Nxc3
{[%emt 0:00:02]} 10. bxc3 {[%emt 0:00:02]} Bxc3 {[%emt 0:00:13]} 11. Rb1 {
[%emt 0:00:18]} Qa5 {[%emt 0:01:24]} 12. Bh6 {[%emt 0:02:48]} Rd8 {[%emt 0:00:
45]} 13. Qc2 {[%emt 0:00:02]} Bg4 {[%emt 0:03:13]} 14. Rfc1 {[%emt 0:00:35]}
Bxf3 {[%emt 0:02:19]} 15. Bxf3 {[%emt 0:00:02]} Bd2 {[%emt 0:00:03]} 16. Bxd2 {
[%emt 0:00:01]} Rxd2 {[%emt 0:00:00]} 17. Qe4 {[%emt 0:01:14]} Rd7 {[%emt 0:01:
08]} 18. a4 {[%emt 0:00:44]} Rad8 {[%emt 0:00:04]} 19. h4 {[%emt 0:00:12]} h5 {
[%emt 0:00:33]} 20. Kg2 {[%emt 0:00:08]} a6 {[%emt 0:00:16]} 21. Qf4 {[%emt 0:
00:15]} e5 {[%emt 0:00:56]} 22. Qg5 {[%emt 0:00:08]} Qxa4 {[%emt 0:00:20]} 23.
Bxh5 {[%emt 0:00:10]} Qe4+ {[%emt 0:00:15]} 24. Bf3 {[%emt 0:00:12]} Qa4 {
[%emt 0:00:09]} 25. h5 {[%emt 0:00:14]} Kg7 {[%emt 0:00:14]} 26. hxg6 {[%emt 0:
00:06]} fxg6 {[%emt 0:00:02]} 27. Rh1 {[%emt 0:00:11]} e4 {[%emt 0:00:21]} 28.
Bg4 {[%emt 0:00:11]} Rf7 {[%emt 0:00:22]} 29. Be6 {[%emt 0:01:12]} Re7 {
[%emt 0:00:35]} 30. Bf5 {[%emt 0:00:29]} Rg8 {[%emt 0:00:29]} 31. Bxg6 {
[%emt 0:00:45]} Qa2 {[%emt 0:00:14]} 32. Rh7+ {[%emt 0:00:06]} 1-0

[Event "European Rapid Championship 2021"]
[Site "Katowice"]
[Date "2021.12.19"]
[Round "10.27"]
[White "Kacprzak, Karol"]
[Black "Fus, Jakub"]
[Result "0-1"]
[ECO "B12"]
[WhiteElo "2038"]
[BlackElo "2252"]
[Annotator "NA"]
[PlyCount "64"]
[EventDate "2021.12.18"]
[EventType "swiss"]
[EventCountry "POL"]
[SourceTitle "playchess.com"]
[Source "ChessBase"]
[SourceQuality "1"]
[TimeControl "900+10"]

1. e4 {[%emt 0:00:02]} c6 {[%emt 0:02:24]} 2. d4 {[%emt 0:00:05]} d5 {[%emt 0:
00:01]} 3. e5 {[%emt 0:00:02]} Bf5 {[%emt 0:00:03]} 4. h4 {[%emt 0:00:02]} h6 {
[%emt 0:00:02]} 5. g4 {[%emt 0:00:57]} Bd7 {[%emt 0:00:01]} 6. h5 {[%emt 0:00:
06]} c5 {[%emt 0:00:27]} 7. c3 {[%emt 0:01:02]} Qb6 {[%emt 0:00:19]} 8. dxc5 {
[%emt 0:01:00]} Qxc5 {[%emt 0:00:02]} 9. Bg2 {[%emt 0:00:03]} e6 {[%emt 0:00:
09]} 10. Nf3 {[%emt 0:00:20]} Qc7 {[%emt 0:01:05]} 11. Bf4 {[%emt 0:01:21]} Ne7
{[%emt 0:00:07]} 12. Nbd2 {[%emt 0:00:30]} Na6 {[%emt 0:00:07]} 13. Nb3 {
[%emt 0:00:07]} Nc6 {[%emt 0:00:44]} 14. Qd2 {[%emt 0:00:08]} Nc5 {[%emt 0:00:
08]} 15. Nxc5 {[%emt 0:00:35]} Bxc5 {[%emt 0:00:02]} 16. O-O-O {[%emt 0:00:33]}
Na5 {[%emt 0:01:01]} 17. Qc2 {[%emt 0:00:51]} Nc4 {[%emt 0:00:30]} 18. Kb1 {
[%emt 0:03:51]} Qb6 {[%emt 0:00:50]} 19. Ka1 {[%emt 0:00:01]} Bxf2 {[%emt 0:01:
34]} 20. Nd4 {[%emt 0:00:20]} Be3 {[%emt 0:00:02]} 21. Rdf1 {[%emt 0:00:02]}
Bxd4 {[%emt 0:00:15]} 22. cxd4 {[%emt 0:00:02]} Qxd4 {[%emt 0:00:02]} 23. Rh3 {
[%emt 0:03:09]} Rc8 {[%emt 0:02:57]} 24. Rd3 {[%emt 0:01:07]} Qb6 {[%emt 0:00:
42]} 25. Rc3 {[%emt 0:00:48]} O-O {[%emt 0:00:33]} 26. g5 {[%emt 0:00:41]} Ne3
{[%emt 0:00:09]} 27. Bxe3 {[%emt 0:00:17]} Qxe3 {[%emt 0:00:01]} 28. gxh6 {
[%emt 0:00:01]} Rxc3 {[%emt 0:00:27]} 29. bxc3 {[%emt 0:00:40]} Qxh6 {[%emt 0:
00:08]} 30. Qf2 {[%emt 0:00:11]} Qg5 {[%emt 0:00:14]} 31. Qe2 {[%emt 0:00:56]}
Rc8 {[%emt 0:00:33]} 32. Qf2 {[%emt 0:00:09]} Be8 {[%emt 0:00:08]} 0-1

[Event "European Rapid Championship 2021"]
[Site "Katowice"]
[Date "2021.12.19"]
[Round "10.28"]
[White "Grabarczyk, Miroslaw"]
[Black "Krawczyk, Flawian"]
[Result "1-0"]
[ECO "E68"]
[WhiteElo "2373"]
[BlackElo "2154"]
[Annotator "NA"]
[PlyCount "67"]
[EventDate "2021.12.18"]
[EventType "swiss"]
[EventCountry "POL"]
[SourceTitle "playchess.com"]
[Source "ChessBase"]
[SourceQuality "1"]
[TimeControl "900+10"]

1. d4 {[%emt 0:00:02]} Nf6 {[%emt 0:00:01]} 2. c4 {[%emt 0:00:02]} g6 {[%emt 0:
00:02]} 3. Nf3 {[%emt 0:00:02]} Bg7 {[%emt 0:00:02]} 4. g3 {[%emt 0:00:02]} O-O
{[%emt 0:00:03]} 5. Bg2 {[%emt 0:00:02]} d6 {[%emt 0:00:02]} 6. Nc3 {[%emt 0:
00:02]} Nbd7 {[%emt 0:00:04]} 7. O-O {[%emt 0:00:03]} e5 {[%emt 0:00:02]} 8. e4
{[%emt 0:00:04]} exd4 {[%emt 0:00:02]} 9. Nxd4 {[%emt 0:00:02]} Re8 {[%emt 0:
00:01]} 10. Re1 {[%emt 0:00:18]} Nc5 {[%emt 0:00:02]} 11. Nb3 {[%emt 0:00:02]}
Nxb3 {[%emt 0:02:27]} 12. axb3 {[%emt 0:00:02]} Bd7 {[%emt 0:01:00]} 13. Be3 {
[%emt 0:00:14]} a6 {[%emt 0:01:10]} 14. Bd4 {[%emt 0:00:04]} Ng4 {[%emt 0:00:
10]} 15. Bxg7 {[%emt 0:00:15]} Kxg7 {[%emt 0:00:02]} 16. h3 {[%emt 0:00:19]}
Ne5 {[%emt 0:00:17]} 17. f4 {[%emt 0:00:07]} Nc6 {[%emt 0:00:02]} 18. Nd5 {
[%emt 0:00:02]} Be6 {[%emt 0:00:20]} 19. Qd2 {[%emt 0:00:33]} a5 {[%emt 0:01:
06]} 20. Qc3+ {[%emt 0:03:40]} f6 {[%emt 0:00:01]} 21. c5 {[%emt 0:01:14]} Rc8
{[%emt 0:06:14]} 22. Rad1 {[%emt 0:00:53]} Bxd5 {[%emt 0:00:44]} 23. exd5 {
[%emt 0:01:28]} Nb4 {[%emt 0:00:01]} 24. Rxe8 {[%emt 0:00:04]} Qxe8 {[%emt 0:
00:01]} 25. Re1 {[%emt 0:00:04]} Qf8 {[%emt 0:00:01]} 26. g4 {[%emt 0:00:52]}
Re8 {[%emt 0:00:57]} 27. Re6 {[%emt 0:00:59]} Rxe6 {[%emt 0:01:14]} 28. dxe6 {
[%emt 0:00:02]} d5 {[%emt 0:00:03]} 29. g5 {[%emt 0:01:11]} Na6 {[%emt 0:01:53]
} 30. Bxd5 {[%emt 0:00:30]} c6 {[%emt 0:00:00]} 31. Bc4 {[%emt 0:01:35]} Nc7 {
[%emt 0:00:04]} 32. Qxa5 {[%emt 0:00:18]} Qe7 {[%emt 0:00:01]} 33. gxf6+ Kxf6 {
[%emt 0:00:01]} 34. Qc3+ {[%emt 0:00:36]} 1-0

[Event "European Rapid Championship 2021"]
[Site "Katowice"]
[Date "2021.12.19"]
[Round "10.28"]
[White "Balacek, Tadeas"]
[Black "Parol, Pawel"]
[Result "1-0"]
[ECO "D43"]
[WhiteElo "2354"]
[BlackElo "2146"]
[Annotator "NA"]
[PlyCount "111"]
[EventDate "2021.12.18"]
[EventType "swiss"]
[EventCountry "POL"]
[SourceTitle "playchess.com"]
[Source "ChessBase"]
[SourceQuality "1"]
[TimeControl "900+10"]

1. d4 {[%emt 0:00:03]} d5 {[%emt 0:00:01]} 2. c4 {[%emt 0:00:02]} c6 {[%emt 0:
00:02]} 3. Nf3 {[%emt 0:00:01]} Nf6 {[%emt 0:00:01]} 4. Nc3 {[%emt 0:00:01]} e6
{[%emt 0:00:01]} 5. g3 {[%emt 0:00:01]} Nbd7 {[%emt 0:01:14]} 6. Bg2 {[%emt 0:
00:02]} Bd6 {[%emt 0:00:31]} 7. O-O {[%emt 0:00:03]} O-O {[%emt 0:00:03]} 8.
Nd2 {[%emt 0:00:01]} b6 {[%emt 0:02:06]} 9. e4 {[%emt 0:00:02]} dxe4 {[%emt 0:
00:02]} 10. Ndxe4 {[%emt 0:00:01]} Nxe4 {[%emt 0:00:21]} 11. Nxe4 {[%emt 0:00:
02]} Be7 {[%emt 0:00:22]} 12. Qc2 {[%emt 0:00:12]} Bb7 {[%emt 0:00:26]} 13. Rd1
{[%emt 0:00:15]} Nf6 {[%emt 0:00:32]} 14. c5 {[%emt 0:00:03]} Nd5 {[%emt 0:00:
48]} 15. a3 {[%emt 0:00:38]} Qd7 {[%emt 0:05:19]} 16. Bg5 {[%emt 0:01:21]} f6 {
[%emt 0:00:41]} 17. Bd2 {[%emt 0:00:02]} Ba6 {[%emt 0:00:54]} 18. b4 {[%emt 0:
01:07]} Be2 {[%emt 0:00:18]} 19. Re1 {[%emt 0:00:08]} Bh5 {[%emt 0:00:02]} 20.
Nc3 {[%emt 0:01:10]} bxc5 {[%emt 0:00:44]} 21. dxc5 {[%emt 0:01:42]} Bg6 {
[%emt 0:00:32]} 22. Qb3 {[%emt 0:00:41]} Bf7 {[%emt 0:00:29]} 23. Rad1 {
[%emt 0:00:13]} Qc7 {[%emt 0:00:50]} 24. Qc2 {[%emt 0:04:50]} Rfd8 {[%emt 0:01:
02]} 25. Be4 {[%emt 0:00:54]} h6 {[%emt 0:00:27]} 26. Bg6 {[%emt 0:00:45]} f5 {
[%emt 0:00:51]} 27. Bxf7+ {[%emt 0:00:05]} Kxf7 {[%emt 0:00:01]} 28. Nxd5 {
[%emt 0:02:06]} Rxd5 {[%emt 0:00:04]} 29. Bf4 {[%emt 0:00:19]} Qd7 {[%emt 0:00:
22]} 30. Rxd5 {[%emt 0:00:04]} exd5 {[%emt 0:00:40]} 31. Qe2 {[%emt 0:00:54]}
Bf6 {[%emt 0:00:12]} 32. Qh5+ {[%emt 0:00:03]} Kf8 {[%emt 0:00:20]} 33. Qg6 {
[%emt 0:00:39]} Qf7 {[%emt 0:00:11]} 34. Qxf5 {[%emt 0:00:11]} Re8 {[%emt 0:00:
07]} 35. Bd6+ {[%emt 0:00:25]} Kg8 {[%emt 0:00:06]} 36. Rxe8+ {[%emt 0:00:39]}
Qxe8 {[%emt 0:00:01]} 37. b5 {[%emt 0:00:02]} Qe1+ {[%emt 0:00:25]} 38. Kg2 {
[%emt 0:00:02]} Qe8 {[%emt 0:00:11]} 39. b6 {[%emt 0:00:26]} axb6 {[%emt 0:00:
06]} 40. cxb6 {[%emt 0:00:01]} Bd4 {[%emt 0:00:01]} 41. b7 {[%emt 0:00:07]} Ba7
{[%emt 0:00:14]} 42. Qc8 {[%emt 0:00:10]} Kf7 {[%emt 0:00:01]} 43. Qxe8+ Kxe8
44. b8=Q+ {[%emt 0:00:14]} Bxb8 {[%emt 0:00:01]} 45. Bxb8 {[%emt 0:00:02]} c5 {
[%emt 0:00:06]} 46. Bd6 {[%emt 0:00:07]} c4 {[%emt 0:00:01]} 47. Be5 {[%emt 0:
00:01]} g6 {[%emt 0:00:03]} 48. Kf3 {[%emt 0:00:02]} Kd7 {[%emt 0:00:01]} 49.
Ke3 {[%emt 0:00:02]} Ke6 {[%emt 0:00:03]} 50. Bc3 {[%emt 0:00:04]} Kd6 {
[%emt 0:00:04]} 51. Kd4 {[%emt 0:00:13]} h5 {[%emt 0:00:01]} 52. a4 {[%emt 0:
00:03]} Kc6 {[%emt 0:00:01]} 53. a5 {[%emt 0:00:03]} Kb5 {[%emt 0:00:01]} 54.
Kxd5 {[%emt 0:00:02]} g5 {[%emt 0:00:00]} 55. f4 {[%emt 0:00:04]} gxf4 {
[%emt 0:00:01]} 56. gxf4 {[%emt 0:00:02]} 1-0